bitfinex/quotes_SOLUSD_20250210
["timestamp","ask_amount","ask_price","bid_price","bid_amount"]
[1739182219605,10.91889872,205.37,205.36,0.03]
[1739182219795,7.02349872,205.37,205.36,0.03]
[1739182220217,5.46869872,205.37,205.36,0.03]
[1739182221322,5.46869872,205.4,205.36,0.03]
[1739182223504,5.46869872,205.38,205.36,0.03]
[1739182224200,21.87479488,205.37,205.36,0.03]
[1739182224422,23.00028488,205.37,205.36,0.03]
[1739182224588,1.5455,205.34,205.32,0.03]
[1739182224792,5.46869872,205.33,205.32,0.03]
[1739182226622,24.21144853,205.41,205.32,0.03]
[1739182226623,5.46869872,205.36,205.32,0.03]
[1739182226922,5.46869872,205.38,205.32,0.03]
[1739182227299,5.46869872,205.39,205.32,14.17224062]
[1739182228742,5.46869872,205.39,205.32,13.44184853]
[1739182229045,5.46869872,205.37,205.32,0.03]
[1739182229713,8.54693258,205.37,205.32,0.03]
[1739182231540,8.54693258,205.35,205.32,0.03]
[1739182234039,8.54693258,205.37,205.32,0.03]
[1739182236026,8.54693258,205.39,205.32,0.03]
[1739182236338,8.54693258,205.39,205.32,13.44184853]
[1739182237842,8.54693258,205.39,205.33,3.8961]
[1739182238246,8.54693258,205.39,205.34,13.41184853]
[1739182238542,8.54693258,205.39,205.33,3.8961]
[1739182238720,8.54693258,205.37,205.33,3.8961]
[1739182238929,8.54693258,205.37,205.32,0.03]
[1739182239344,3.8948,205.4,205.32,0.03]
[1739182239345,8.54693258,205.35,205.32,0.03]
[1739182241449,8.54693258,205.33,205.32,0.03]
[1739182244053,12.44303258,205.33,205.32,0.03]
[1739182244437,13.67273133,205.33,205.32,0.03]
[1739182244650,12.44303258,205.33,205.32,0.03]
[1739182245756,8.54693258,205.33,205.32,0.03]
[1739182246127,12.44303258,205.33,205.32,0.03]
[1739182247350,20.0,205.3,205.25,0.03]
[1739182247547,8.54693258,205.26,205.25,0.03]
[1739182247852,8.54693258,205.28,205.25,0.03]
[1739182253226,28.54693258,205.32,205.25,0.03]
[1739182253521,8.54693258,205.32,205.25,13.44184853]
[1739182253726,5.47211947,205.33,205.25,18.913968]
[1739182253927,0.063,205.35,205.33,13.41184853]
[1739182254166,0.063,205.35,205.34,5.47211947]
[1739182254841,0.063,205.35,205.34,9.36801947]
[1739182255341,0.063,205.35,205.34,22.779868]
[1739182255738,0.063,205.35,205.34,26.58074925]
[1739182256135,0.063,205.35,205.34,25.85047693]
[1739182256339,0.063,205.35,205.34,17.30774853]
[1739182256662,0.063,205.35,205.34,3.8959]
[1739182257246,0.063,205.35,205.33,6.5823]
[1739182257446,0.063,205.35,205.32,3.9262]
[1739182258576,0.063,205.35,205.33,8.5427284]
[1739182260168,0.063,205.35,205.34,3.8959]
[1739182260377,0.063,205.35,205.32,0.03]
[1739182260951,0.063,205.35,205.32,3.9262]
[1739182261156,0.063,205.35,205.32,0.03]
[1739182262868,0.063,205.35,205.32,9.30311625]
[1739182263367,0.063,205.35,205.32,13.44184853]
[1739182263671,0.063,205.35,205.32,0.03]
[1739182264867,8.5427284,205.33,205.32,0.03]
[1739182265663,8.5427284,205.34,205.32,0.03]
[1739182265841,8.6057284,205.35,205.32,0.03]
[1739182268063,12.5015284,205.35,205.32,0.03]
[1739182268261,8.5427284,205.33,205.32,0.03]
[1739182271273,0.063,205.35,205.32,0.03]
[1739182271463,0.063,205.35,205.34,22.08006693]
[1739182271665,0.063,205.35,205.32,8.5727284]
[1739182271866,0.063,205.35,205.32,0.03]
[1739182272065,8.6057284,205.35,205.32,0.03]
[1739182272381,8.5427284,205.33,205.32,0.03]
[1739182277881,0.063,205.35,205.32,0.03]
[1739182277882,5.47179777,205.34,205.32,0.03]
[1739182279584,0.063,205.35,205.32,0.03]
[1739182282489,5.47179777,205.34,205.32,0.03]
[1739182283786,3.8961,205.33,205.32,0.03]
[1739182290472,3.9591,205.33,205.32,0.03]
[1739182292211,0.063,205.33,205.32,0.03]
[1739182297788,43.02984848,205.33,205.32,0.03]
[1739182297990,29.61799995,205.33,205.32,0.03]
[1739182298594,33.51409995,205.33,205.32,0.03]
[1739182300286,1.0,205.28,205.25,0.03]
[1739182300480,17.1099999,205.26,205.25,0.03]
[1739182300682,35.54473843,205.26,205.25,0.03]
[1739182301197,36.74679642,205.26,205.25,0.03]
[1739182301378,20.0,205.23,205.13,0.03]
[1739182301579,8.55499995,205.18,205.13,0.03]
[1739182302601,8.55499995,205.18,205.13,3.9299]
[1739182303401,8.55499995,205.18,205.13,0.03]
[1739182304476,1.5421,205.25,205.14,0.12549]
[1739182304679,8.55499995,205.25,205.17,8.55499995]
[1739182305116,8.55499995,205.24,205.16,22.69778159]
[1739182305705,8.55499995,205.24,205.16,42.69778159]
[1739182305894,8.55499995,205.24,205.17,3.8992]
[1739182306201,8.55499995,205.25,205.18,13.41184853]
[1739182306375,8.55499995,205.26,205.19,8.1271]
[1739182306575,8.55499995,205.25,205.19,8.1271]
[1739182306776,8.55499995,205.24,205.19,8.1271]
[1739182307908,8.55499995,205.24,205.2,3.8986]
[1739182309001,8.55499995,205.26,205.2,3.8986]
[1739182309308,8.55499995,205.27,205.2,4.62941316]
[1739182310708,8.55499995,205.27,205.2,3.8986]
[1739182310880,8.55499995,205.25,205.2,3.8986]
[1739182311086,8.55499995,205.23,205.19,8.1271]
[1739182311483,8.55499995,205.23,205.19,12.0259]
[1739182313605,8.55499995,205.25,205.19,12.0259]
[1739182314629,8.55499995,205.25,205.19,12.0559]
[1739182314787,8.55499995,205.25,205.19,12.78670612]
[1739182314984,8.61799995,205.25,205.21,3.8984]
[1739182317878,8.61799995,205.25,205.19,90.78790612]
[1739182318082,8.61799995,205.25,205.2,3.8986]
[1739182320619,8.61799995,205.25,205.2,17.31044853]
[1739182320811,0.063,205.25,205.21,13.53733853]
[1739182321015,0.063,205.25,205.21,95.43733853]
[1739182321220,0.063,205.25,205.21,81.9]
[1739182321398,8.61799995,205.25,205.21,81.9]
[1739182323228,0.063,205.25,205.22,13.41184853]
[1739182324128,0.063,205.25,205.24,13.41184853]
[1739182324801,0.063,205.25,205.24,13.53733853]
[1739182327746,0.063,205.25,205.24,13.41184853]
[1739182327941,0.063,205.25,205.23,3.68]
[1739182328219,5.47455123,205.24,205.22,81.9]
[1739182329757,8.55715156,205.23,205.21,0.03]
[1739182329932,8.55715156,205.22,205.21,0.03]
[1739182335629,12.45535156,205.22,205.21,0.03]
[1739182340538,12.58084156,205.22,205.21,0.03]
[1739182341844,93.58084156,205.22,205.21,0.03]
[1739182342026,20.0,205.2,205.19,0.03]
[1739182342333,28.55715156,205.2,205.19,0.03]
[1739182343139,32.45575156,205.2,205.19,0.03]
[1739182351751,29.38115071,205.2,205.19,0.03]
[1739182353640,122.12765071,205.2,205.15,0.03]
[1739182353843,5.48255071,205.16,205.15,0.03]
[1739182354942,9.38185071,205.16,205.15,0.03]
[1739182363857,31.31205355,205.16,205.15,0.03]
[1739182365962,9.38185071,205.16,205.15,0.03]
[1739182371854,31.31205355,205.16,205.15,0.03]
[1739182372563,9.38185071,205.16,205.15,0.03]
[1739182373661,5.48255071,205.16,205.15,0.03]
[1739182376072,9.38185071,205.16,205.15,0.03]
[1739182380465,31.31205355,205.16,205.15,0.03]
[1739182380966,9.38185071,205.16,205.15,0.03]
[1739182381284,5.48255071,205.16,205.15,0.03]
[1739182381965,9.38185071,205.16,205.15,0.03]
[1739182382584,5.48255071,205.16,205.15,0.03]
[1739182384282,9.38185071,205.16,205.15,0.03]
[1739182385183,5.48255071,205.16,205.15,0.03]
[1739182385585,5.48255071,205.18,205.15,0.03]
[1739182386581,5.48255071,205.18,205.15,1.5858]
[1739182387963,5.48255071,205.18,205.15,5.4853]
[1739182388271,5.48255071,205.18,205.15,1.5858]
[1739182388987,5.48255071,205.18,205.15,5.4853]
[1739182389670,5.54555071,205.19,205.15,5.4853]
[1739182391988,5.48255071,205.18,205.15,1.5858]
[1739182392690,5.54555071,205.19,205.15,1.5858]
[1739182393501,5.54555071,205.19,205.15,5.4853]
[1739182394795,5.54555071,205.19,205.15,1.5858]
[1739182395463,5.54555071,205.19,205.15,5.4853]
[1739182395991,5.54555071,205.19,205.15,1.5858]
[1739182396663,5.54555071,205.19,205.15,5.4853]
[1739182396859,0.063,205.19,205.17,13.41184853]
[1739182397071,0.063,205.19,205.18,0.73089192]
[1739182397309,0.063,205.19,205.18,14.39372045]
[1739182397490,0.063,205.19,205.18,53.04527116]
[1739182397791,0.063,205.19,205.18,59.29577116]
[1739182399478,0.063,205.19,205.18,59.32577116]
[1739182401190,0.063,205.19,205.18,6.2805]
[1739182401698,0.063,205.19,205.18,10.1795]
[1739182402093,0.063,205.19,205.18,9.0215]
[1739182402270,0.063,205.19,205.18,22.55883853]
[1739182404492,0.063,205.19,205.18,274.33687924]
[1739182404710,0.063,205.25,205.24,19.14537924]
[1739182404887,0.063,205.25,205.24,19.87597937]
[1739182405093,0.063,205.25,205.24,14.39342866]
[1739182405512,0.063,205.25,205.24,14.14244866]
[1739182405697,0.063,205.25,205.24,13.41184853]
[1739182405997,0.063,205.25,205.24,13.66282853]
[1739182406569,0.063,205.25,205.24,17.56062853]
[1739182407372,0.063,205.25,205.24,29.29367924]
[1739182407705,5.48255071,205.32,205.26,0.12549]
[1739182407989,5.48255071,205.29,205.24,7.8962]
[1739182408366,5.48255071,205.27,205.24,7.8962]
[1739182408567,5.48255071,205.27,205.22,20.0]
[1739182409586,5.48255071,205.27,205.22,23.8982]
[1739182410104,5.48255071,205.3,205.23,19.75061948]
[1739182410402,5.48255071,205.3,205.23,14.26806877]
[1739182410591,5.48255071,205.3,205.25,13.41184853]
[1739182410894,0.063,205.27,205.25,13.41184853]
[1739182412905,0.063,205.27,205.25,17.30944853]
[1739182413803,0.063,205.27,205.26,19.75052728]
[1739182414099,0.063,205.27,205.26,27.59251728]
[1739182416910,0.063,205.27,205.26,31.48991728]
[1739182418680,0.063,205.27,205.26,25.88187657]
[1739182419684,0.063,205.27,205.26,26.00736657]
[1739182420712,0.063,205.27,205.26,31.48991728]
[1739182426216,0.063,205.27,205.26,4.62803804]
[1739182426510,0.063,205.27,205.25,85.8276]
[1739182426709,0.063,205.27,205.26,13.41184853]
[1739182426899,0.063,205.27,205.26,14.14241856]
[1739182427311,0.063,205.27,205.26,19.75045927]
[1739182427808,0.063,205.27,205.26,19.87594927]
[1739182428499,0.063,205.27,205.26,23.77334927]
[1739182432030,0.063,205.27,205.26,24.77334927]
[1739182433503,0.063,205.27,205.26,241.67334927]
[1739182433703,0.063,205.27,205.26,240.94277924]
[1739182437132,0.063,205.27,205.26,239.94277924]
[1739182438522,0.063,205.33,205.32,20.25098]
[1739182438731,0.063,205.33,205.32,30.14380398]
[1739182439313,0.063,205.33,205.32,24.66125327]
[1739182440012,0.063,205.33,205.32,28.55755327]
[1739182442420,0.063,205.33,205.32,41.9694018]
[1739182443041,0.063,205.33,205.32,258.8694018]
[1739182443216,0.063,205.33,205.32,258.13912853]
[1739182447227,0.063,205.33,205.32,287.40912853]
[1739182448242,0.063,205.33,205.32,295.37542853]
[1739182451349,0.063,205.33,205.32,296.37542853]
[1739182452146,0.0001,205.33,205.32,296.37542853]
[1739182453246,0.0001,205.33,205.32,301.85797924]
[1739182455524,0.063,205.35,205.32,301.85797924]
[1739182455525,0.0001,205.35,205.34,31.52098]
[1739182455826,0.0001,205.35,205.34,51.14542392]
[1739182456027,0.063,205.4,205.39,20.25098]
[1739182456216,0.063,205.4,205.39,256.77532582]
[1739182456419,0.063,205.4,205.39,256.04537924]
[1739182457050,0.063,205.4,205.39,259.94037924]
[1739182457264,0.0001,205.41,205.4,2.0]
[1739182457420,0.063,205.48,205.42,34.66282853]
[1739182457622,0.063,205.48,205.42,52.60132694]
[1739182457822,0.063,205.48,205.42,46.42085776]
[1739182458043,0.063,205.48,205.42,39.87518619]
[1739182458248,0.063,205.48,205.42,287.04518619]
[1739182458442,0.063,205.48,205.42,285.31537924]
[1739182458637,0.063,205.48,205.42,256.04537924]
[1739182459248,0.063,205.48,205.42,254.45722853]
[1739182459625,0.063,205.48,205.42,259.93977924]
[1739182467041,5.39855071,205.53,205.46,20.0]
[1739182467245,5.39855071,205.53,205.47,13.41184853]
[1739182468050,5.39855071,205.53,205.47,17.30514853]
[1739182468244,5.39855071,205.53,205.48,0.25098]
[1739182468448,5.39855071,205.53,205.46,20.0]
[1739182468655,1.5526,205.54,205.47,5.48255071]
[1739182469154,1.5526,205.54,205.48,13.66282853]
[1739182469352,5.48255071,205.53,205.48,13.66282853]
[1739182469747,5.48255071,205.53,205.48,17.55602853]
[1739182470954,1.6156,205.54,205.5,13.41184853]
[1739182471353,1.6156,205.54,205.48,9.62673071]
[1739182473158,1.6156,205.54,205.47,17.30524853]
[1739182473333,5.48255071,205.51,205.46,23.7]
[1739182473539,5.48255071,205.51,205.45,216.9]
[1739182473739,5.48255071,205.51,205.44,3.894]
[1739182474160,5.48255071,205.51,205.45,13.66282853]
[1739182475361,5.48255071,205.51,205.46,3.8937]
[1739182476461,5.48255071,205.51,205.43,5.48255071]
[1739182476767,9.37535071,205.51,205.43,9.37675071]
[1739182477664,5.48255071,205.49,205.41,9.37695071]
[1739182478348,5.48255071,205.49,205.42,13.41184853]
[1739182480047,5.48255071,205.49,205.42,17.30624853]
[1739182480447,1.6042,205.48,205.41,5.48255071]
[1739182480753,5.48255071,205.47,205.4,7.87558]
[1739182480954,5.48255071,205.47,205.41,13.41184853]
[1739182482172,5.48255071,205.47,205.41,17.30634853]
[1739182485967,5.48255071,205.47,205.42,0.12549]
[1739182486168,5.48255071,205.47,205.42,4.01989]
[1739182486774,5.48255071,205.47,205.4,13.10715071]
[1739182486975,5.48255071,205.47,205.4,7.6246]
[1739182487465,5.48255071,205.42,205.4,0.03]
[1739182487662,1.6042,205.43,205.4,0.03]
[1739182487663,5.48255071,205.41,205.4,0.03]
[1739182487861,5.48255071,205.42,205.4,0.03]
[1739182488452,7.08675071,205.43,205.4,0.03]
[1739182488654,1.6042,205.43,205.4,0.03]
[1739182488952,7.08675071,205.43,205.4,0.03]
[1739182489365,1.6042,205.43,205.4,0.03]
[1739182490657,7.08675071,205.43,205.4,0.03]
[1739182490860,5.48255071,205.42,205.4,0.03]
[1739182491371,5.48255071,205.41,205.4,0.03]
[1739182492181,5.48255071,205.42,205.4,0.03]
[1739182492358,5.48255071,205.41,205.4,0.03]
[1739182494187,9.37715071,205.41,205.4,0.03]
[1739182494365,5.48255071,205.41,205.4,0.03]
[1739182494764,10.37715071,205.41,205.4,0.03]
[1739182495884,1.6094,205.4,205.28,3.68]
[1739182496063,5.48255071,205.34,205.28,3.8971]
[1739182496653,5.48255071,205.31,205.27,0.03]
[1739182497074,5.48255071,205.32,205.27,0.15549]
[1739182497984,5.48255071,205.32,205.27,0.03]
[1739182498286,5.48255071,205.31,205.27,0.03]
[1739182498463,5.48255071,205.32,205.27,0.03]
[1739182500287,5.48255071,205.3,205.27,0.03]
[1739182500588,5.48255071,205.28,205.27,0.03]
[1739182500785,5.48255071,205.29,205.27,0.03]
[1739182500957,7.944,205.34,205.27,0.03]
[1739182500958,5.48255071,205.31,205.27,0.03]
[1739182501162,5.48255071,205.32,205.27,0.03]
[1739182501389,7.944,205.34,205.27,0.03]
[1739182501390,7.09195071,205.34,205.27,5.51255071]
[1739182502276,7.09195071,205.34,205.28,3.8971]
[1739182502478,1.6094,205.34,205.28,9.37965071]
[1739182502678,3.8953,205.38,205.28,9.37965071]
[1739182502679,5.48255071,205.37,205.31,0.12549]
[1739182502992,7.09195071,205.39,205.32,5.48255071]
[1739182503173,5.48255071,205.42,205.35,5.48255071]
[1739182503379,5.48255071,205.44,205.36,5.48255071]
[1739182503563,5.48255071,205.42,205.36,0.12549]
[1739182503772,5.48255071,205.39,205.32,5.48255071]
[1739182504001,5.48255071,205.38,205.31,9.16255071]
[1739182504297,5.48255071,205.38,205.32,13.53733853]
[1739182504475,5.48255071,205.38,205.32,17.43363853]
[1739182504668,5.48255071,205.38,205.32,3.8963]
[1739182504891,5.48255071,205.34,205.28,3.68]
[1739182505095,5.48255071,205.33,205.28,7.577]
[1739182505292,5.48255071,205.34,205.28,7.577]
[1739182505498,5.48255071,205.35,205.28,13.05955071]
[1739182505873,5.48255071,205.35,205.28,13.08955071]
[1739182506094,5.48255071,205.36,205.29,22.91658924]
[1739182506282,5.48255071,205.35,205.28,3.71]
[1739182506484,5.48255071,205.34,205.28,3.71]
[1739182506673,5.48255071,205.34,205.28,7.607]
[1739182507195,5.48255071,205.34,205.28,3.71]
[1739182507395,5.895,205.39,205.28,3.71]
[1739182507396,5.48255071,205.31,205.28,3.71]
[1739182508270,5.48255071,205.31,205.28,0.03]
[1739182509176,5.48255071,205.3,205.28,0.03]
[1739182510100,5.48255071,205.31,205.28,0.03]
[1739182510277,5.48255071,205.32,205.28,0.03]
[1739182511600,81.0,205.34,205.28,5.63804071]
[1739182512593,81.0,205.34,205.3,0.12549]
[1739182512807,5.48255071,205.36,205.3,0.12549]
[1739182512970,5.48255071,205.37,205.3,19.01988924]
[1739182513298,7.02605071,205.38,205.3,19.01988924]
[1739182513892,81.0,205.39,205.33,5.48255071]
[1739182514092,81.0,205.39,205.34,5.48255071]
[1739182514297,0.063,205.4,205.35,0.12549]
[1739182514501,0.063,205.4,205.36,5.48255071]
[1739182514677,0.063,205.4,205.37,3.8954]
[1739182515809,0.063,205.4,205.38,0.12549]
[1739182517104,0.063,205.4,205.39,3.895]
[1739182518208,0.063,205.4,205.37,17.43253853]
[1739182518576,0.063,205.4,205.35,3.8956]
[1739182519205,0.063,205.4,205.36,0.12549]
[1739182520202,5.54555071,205.4,205.34,7.5759]
[1739182520497,5.48255071,205.38,205.32,4.02159]
[1739182520883,5.48255071,205.38,205.33,13.53733853]
[1739182521195,5.48255071,205.39,205.33,13.53733853]
[1739182521886,5.48255071,205.39,205.33,4.02149]
[1739182522088,5.48255071,205.38,205.31,9.37895071]
[1739182522308,5.48255071,205.38,205.32,0.12549]
[1739182522703,5.48255071,205.39,205.32,0.12549]
[1739182523093,0.063,205.4,205.34,5.48255071]
[1739182523702,0.063,205.4,205.35,13.53733853]
[1739182523890,0.063,205.4,205.35,19.01988924]
[1739182524192,0.063,205.4,205.36,3.8955]
[1739182524710,0.063,205.4,205.35,13.53733853]
[1739182524937,0.063,205.4,205.32,0.12549]
[1739182524938,5.54555071,205.4,205.33,3.896]
[1739182525210,5.48255071,205.39,205.33,3.896]
[1739182525385,5.54555071,205.4,205.33,3.896]
[1739182525708,5.54555071,205.4,205.33,29.37855071]
[1739182526598,5.48255071,205.39,205.33,3.896]
[1739182526805,3.9578,205.4,205.31,3.8963]
[1739182526806,5.48255071,205.38,205.31,3.8963]
[1739182527111,5.48255071,205.38,205.32,0.12549]
[1739182528103,3.9578,205.4,205.31,3.8963]
[1739182528309,5.48255071,205.37,205.31,3.8963]
[1739182528890,5.48255071,205.35,205.3,0.12549]
[1739182529207,3.8954,205.37,205.28,0.03]
[1739182529208,5.48255071,205.34,205.28,0.03]
[1739182529392,5.48255071,205.33,205.28,0.03]
[1739182529720,5.48255071,205.32,205.28,0.03]
[1739182530394,5.48255071,205.33,205.28,0.03]
[1739182530992,5.48255071,205.35,205.28,0.03]
[1739182532487,86.48255071,205.36,205.29,9.37945071]
[1739182533013,81.0,205.36,205.3,0.12549]
[1739182533510,81.0,205.36,205.31,3.8965]
[1739182533913,81.0,205.36,205.31,9.37905071]
[1739182534391,81.0,205.36,205.31,3.8965]
[1739182534704,86.48255071,205.36,205.3,0.12549]
[1739182534903,86.48255071,205.36,205.28,0.03]
[1739182534904,5.48255071,205.34,205.28,0.03]
[1739182535115,5.48255071,205.33,205.28,0.03]
[1739182535618,5.48255071,205.32,205.28,0.03]
[1739182536725,81.0,205.34,205.28,0.03]
[1739182536726,5.48255071,205.33,205.28,0.03]
[1739182537018,86.48255071,205.34,205.28,0.03]
[1739182538003,5.48255071,205.33,205.28,0.03]
[1739182538394,86.48255071,205.34,205.28,0.03]
[1739182539107,5.48255071,205.33,205.28,0.03]
[1739182539290,5.48255071,205.32,205.28,0.03]
[1739182542224,5.48255071,205.31,205.28,0.03]
[1739182542516,5.48255071,205.32,205.28,0.03]
[1739182545826,9.37885071,205.32,205.28,0.03]
[1739182546425,5.48255071,205.32,205.28,0.03]
[1739182548227,5.48255071,205.31,205.28,0.03]
[1739182549632,5.48255071,205.32,205.28,0.03]
[1739182553623,86.48255071,205.34,205.28,0.15549]
[1739182553810,5.48255071,205.36,205.28,5.63804071]
[1739182554514,5.48255071,205.35,205.28,5.63804071]
[1739182554727,5.48255071,205.35,205.29,3.8969]
[1739182554953,5.48255071,205.31,205.28,0.03]
[1739182555134,5.48255071,205.3,205.28,0.03]
[1739182555510,5.48255071,205.29,205.28,0.03]
[1739182556543,5.48255071,205.3,205.28,0.03]
[1739182559335,5.48255071,205.29,205.28,0.03]
[1739182560941,9.37945071,205.29,205.28,0.03]
[1739182562639,10.37945071,205.29,205.28,0.03]
[1739182563023,23.79129924,205.29,205.28,0.03]
[1739182563250,22.79129924,205.29,205.28,0.03]
[1739182563717,9.37945071,205.29,205.28,0.03]
[1739182563914,5.48255071,205.29,205.28,0.03]
[1739182564139,9.37945071,205.29,205.28,0.03]
[1739182564325,10.37945071,205.29,205.28,0.03]
[1739182564752,13.41184853,205.28,205.27,0.03]
[1739182564943,40.82460208,205.28,205.27,0.03]
[1739182565849,22.79149924,205.28,205.27,0.03]
[1739182569354,9.37965071,205.28,205.27,0.03]
[1739182570554,45.72170208,205.28,205.27,0.03]
[1739182572652,22.79149924,205.28,205.27,0.03]
[1739182572952,45.72170208,205.28,205.27,0.03]
[1739182573153,1.0,205.27,205.25,0.03]
[1739182573355,28.41275355,205.26,205.25,0.03]
[1739182575645,29.37995071,205.26,205.25,0.03]
[1739182575843,25.48255071,205.26,205.25,0.03]
[1739182576158,5.48255071,205.26,205.25,0.03]
[1739182577854,1.6655,205.36,205.25,0.03]
[1739182577855,5.48255071,205.28,205.25,0.03]
[1739182578159,5.48255071,205.29,205.25,0.03]
[1739182578735,14.64367178,205.34,205.25,0.03]
[1739182578736,5.48255071,205.28,205.25,0.03]
[1739182578941,5.48255071,205.26,205.25,0.03]
[1739182582943,9.37995071,205.26,205.25,0.03]
[1739182584560,5.48255071,205.26,205.25,0.03]
[1739182585444,5.48255071,205.27,205.25,0.03]
[1739182585779,0.063,205.27,205.25,0.03]
[1739182588555,5.54555071,205.27,205.25,0.03]
[1739182588757,5.48255071,205.26,205.25,0.03]
[1739182590482,3.9603,205.27,205.25,0.03]
[1739182590483,0.063,205.27,205.25,0.03]
[1739182590981,5.48255071,205.26,205.25,0.03]
[1739182592774,9.37995071,205.26,205.25,0.03]
[1739182593374,5.48255071,205.26,205.25,0.03]
[1739182593678,9.37995071,205.26,205.25,0.03]
[1739182593883,32.31015355,205.26,205.25,0.03]
[1739182595357,44.72200208,205.26,205.25,0.03]
[1739182595769,45.72200208,205.26,205.25,0.03]
[1739182596767,44.72200208,205.26,205.25,0.03]
[1739182596967,31.31015355,205.26,205.25,0.03]
[1739182597173,32.31015355,205.26,205.25,0.03]
[1739182597996,5.48255071,205.26,205.25,0.03]
[1739182601794,9.37995071,205.26,205.25,0.03]
[1739182602375,5.48255071,205.26,205.25,0.03]
[1739182606279,9.37995071,205.26,205.25,0.03]
[1739182606587,5.48255071,205.26,205.25,0.03]
[1739182608779,9.37995071,205.26,205.25,0.03]
[1739182610965,31.31015355,205.26,205.25,0.03]
[1739182611291,32.31015355,205.26,205.25,0.03]
[1739182611792,20.0,205.23,205.21,0.03]
[1739182612001,5.48255071,205.22,205.21,0.03]
[1739182612880,10.38075071,205.22,205.21,0.03]
[1739182615871,9.38075071,205.22,205.21,0.03]
[1739182618274,23.79259924,205.22,205.21,0.03]
[1739182619193,22.79259924,205.22,205.21,0.03]
[1739182620425,9.38075071,205.22,205.21,0.03]
[1739182625627,22.91808924,205.22,205.21,0.03]
[1739182625797,22.79259924,205.22,205.21,0.03]
[1739182627299,9.38075071,205.22,205.21,0.03]
[1739182629933,5.48255071,205.22,205.21,0.03]
[1739182630099,29.38055071,205.23,205.21,0.03]
[1739182630618,5.48255071,205.22,205.21,0.03]
[1739182631598,6.48255071,205.22,205.21,0.03]
[1739182631797,5.48255071,205.22,205.21,0.03]
[1739182632523,9.38075071,205.22,205.21,0.03]
[1739182635804,11.38075071,205.22,205.21,0.03]
[1739182636006,21.0,205.19,205.18,0.03]
[1739182636308,26.48255071,205.19,205.18,0.03]
[1739182637005,30.38135071,205.19,205.18,0.03]
[1739182637204,43.79319924,205.19,205.18,0.03]
[1739182637405,43.91868924,205.19,205.18,0.03]
[1739182641628,42.91868924,205.19,205.18,0.03]
[1739182641810,44.1527557,205.19,205.18,0.03]
[1739182642011,45.1527557,205.19,205.18,0.03]
[1739182642736,45.1527557,205.19,205.15,0.03]
[1739182642737,21.0,205.16,205.15,0.03]
[1739182643030,39.89439924,205.16,205.15,0.03]
[1739182643434,43.79369924,205.16,205.15,0.03]
[1739182643931,65.72390208,205.16,205.15,0.03]
[1739182644117,1.0,205.14,205.11,0.03]
[1739182644321,19.89439924,205.14,205.11,0.03]
[1739182644632,18.89439924,205.14,205.11,0.03]
[1739182645640,22.79409924,205.14,205.11,0.03]
[1739182646011,9.38225071,205.14,205.11,0.03]
[1739182647131,10.38225071,205.14,205.11,0.03]
[1739182648744,9.38225071,205.14,205.11,0.03]
[1739182652426,22.79409924,205.14,205.11,0.03]
[1739182652739,23.79409924,205.14,205.11,0.03]
[1739182655551,1.0,205.12,205.11,0.03]
[1739182655723,1.0,205.12,205.07,0.03]
[1739182655724,21.0,205.1,205.07,0.03]
[1739182656040,5.48255071,205.08,205.07,0.03]
[1739182656236,19.89439924,205.08,205.07,0.03]
[1739182656949,23.79529924,205.08,205.07,0.03]
[1739182657822,20.0,205.03,205.01,0.03]
[1739182658031,86.48255071,205.02,205.01,0.03]
[1739182658323,5.48255071,205.02,205.01,0.03]